[Event "Live Chess"]
[Site "Chess.com"]
[Date "2024.06.02"]
[Round "-"]
[White "OliWally08"]
[Black "TheSmoulderingMaster"]
[Result "1/2-1/2"]
[WhiteElo "1288"]
[BlackElo "1773"]
[TimeControl "300"]
[EndTime "2:53:41 PDT"]
[Termination "Game drawn - insufficient material"]

1. e4 {[%clk 0:04:56.2]} 1... c5 {[%clk 0:04:58]} 2. c3 {[%clk 0:04:54.1]} 2...
d5 {[%clk 0:04:56.7]} 3. exd5 {[%clk 0:04:52.3]} 3... Qxd5 {[%clk 0:04:55.8]} 4.
d4 {[%clk 0:04:52]} 4... Nf6 {[%clk 0:04:53.7]} 5. Nf3 {[%clk 0:04:44.5]} 5...
Nc6 {[%clk 0:04:52]} 6. Be2 {[%clk 0:04:33.4]} 6... Bg4 {[%clk 0:04:49.3]} 7.
O-O {[%clk 0:04:31.6]} 7... cxd4 {[%clk 0:04:47.8]} 8. Nxd4 {[%clk 0:04:23.2]}
8... Bxe2 {[%clk 0:04:45.2]} 9. Nxe2 {[%clk 0:04:16.1]} 9... e6 {[%clk
0:04:42.7]} 10. Qxd5 {[%clk 0:04:13.2]} 10... Nxd5 {[%clk 0:04:40.3]} 11. Rd1
{[%clk 0:04:02.8]} 11... Bc5 {[%clk 0:04:37.9]} 12. Nd2 {[%clk 0:03:51.2]} 12...
O-O {[%clk 0:04:34.1]} 13. Nf3 {[%clk 0:03:50]} 13... Rad8 {[%clk 0:04:30.1]}
14. Bg5 {[%clk 0:03:48.3]} 14... f6 {[%clk 0:04:27]} 15. Bh4 {[%clk 0:03:47.3]}
15... e5 {[%clk 0:04:23.6]} 16. Ng3 {[%clk 0:03:42.1]} 16... Nf4 {[%clk
0:04:19.9]} 17. Rd2 {[%clk 0:03:34.3]} 17... Rxd2 {[%clk 0:04:09.7]} 18. Nxd2
{[%clk 0:03:34.2]} 18... Rd8 {[%clk 0:04:08.6]} 19. Nf3 {[%clk 0:03:24.8]} 19...
Nd3 {[%clk 0:04:06.5]} 20. Ne4 {[%clk 0:03:16.8]} 20... Bb6 {[%clk 0:04:02.7]}
21. Rd1 {[%clk 0:03:13.6]} 21... Nxb2 {[%clk 0:03:59.8]} 22. Rxd8+ {[%clk
0:03:11.8]} 22... Bxd8 {[%clk 0:03:58.9]} 23. Kf1 {[%clk 0:03:08.4]} 23... f5
{[%clk 0:03:51.5]} 24. Bxd8 {[%clk 0:03:06.4]} 24... Nxd8 {[%clk 0:03:51.4]} 25.
Nd6 {[%clk 0:03:05.1]} 25... e4 {[%clk 0:03:46.9]} 26. Nd4 {[%clk 0:03:00.5]}
26... Na4 {[%clk 0:03:44.4]} 27. c4 {[%clk 0:02:55.9]} 27... Nc3 {[%clk
0:03:37.3]} 28. a3 {[%clk 0:02:50.4]} 28... Nb1 {[%clk 0:03:34.7]} 29. a4 {[%clk
0:02:44.2]} 29... g6 {[%clk 0:03:33.5]} 30. c5 {[%clk 0:02:26.9]} 30... Kf8
{[%clk 0:03:29.3]} 31. Ke2 {[%clk 0:02:14.4]} 31... Nc3+ {[%clk 0:03:24.3]} 32.
Ke3 {[%clk 0:02:09.6]} 32... Nxa4 {[%clk 0:03:23.2]} 33. Kf4 {[%clk 0:01:52.2]}
33... Nxc5 {[%clk 0:03:20.4]} 34. f3 {[%clk 0:01:49.5]} 34... exf3 {[%clk
0:03:17]} 35. Kxf3 {[%clk 0:01:46]} 35... a5 {[%clk 0:03:15.7]} 36. N4b5 {[%clk
0:01:38.4]} 36... a4 {[%clk 0:03:12.6]} 37. g4 {[%clk 0:01:35.3]} 37... fxg4+
{[%clk 0:03:10.3]} 38. Kxg4 {[%clk 0:01:34]} 38... Nc6 {[%clk 0:03:09]} 39. Kg5
{[%clk 0:01:30.6]} 39... Ne5 {[%clk 0:03:06.5]} 40. Kh6 {[%clk 0:01:22.4]} 40...
Ng4+ {[%clk 0:02:59.5]} 41. Kxh7 {[%clk 0:01:21.4]} 41... Nxh2 {[%clk
0:02:58.5]} 42. Kxg6 {[%clk 0:01:20.8]} 42... Nf3 {[%clk 0:02:56.8]} 43. Kf5
{[%clk 0:01:18]} 43... Ke7 {[%clk 0:02:51.6]} 44. Kf4 {[%clk 0:01:03.2]} 44...
Nd4 {[%clk 0:02:47.6]} 45. Nxb7 {[%clk 0:00:35.7]} 45... Nxb5 {[%clk 0:02:39.9]}
46. Nxc5 {[%clk 0:00:32.3]} 46... a3 {[%clk 0:02:38.3]} 47. Nb3 {[%clk
0:00:30.1]} 47... a2 {[%clk 0:02:37]} 48. Ke5 {[%clk 0:00:22.8]} 48... Kd7
{[%clk 0:02:33.2]} 49. Kd5 {[%clk 0:00:17.5]} 49... Kc7 {[%clk 0:02:22.9]} 50.
Kc5 {[%clk 0:00:15.6]} 50... Nc3 {[%clk 0:02:21.5]} 51. Kc4 {[%clk 0:00:14.9]}
51... Nb1 {[%clk 0:02:16.9]} 52. Kd3 {[%clk 0:00:13.2]} 52... Kc6 {[%clk
0:02:14.6]} 53. Kc2 {[%clk 0:00:12.4]} 53... Na3+ {[%clk 0:02:10.1]} 54. Kb2
{[%clk 0:00:10.3]} 54... Nc4+ {[%clk 0:02:08.1]} 55. Kxa2 {[%clk 0:00:09.5]}
1/2-1/2

[Event "Live Chess"]
[Site "Chess.com"]
[Date "2024.06.02"]
[Round "-"]
[White "dmitro74"]
[Black "Crowded_House"]
[Result "1-0"]
[WhiteElo "1738"]
[BlackElo "1666"]
[TimeControl "300"]
[EndTime "2:54:13 PDT"]
[Termination "dmitro74 won by resignation"]

1. d4 {[%clk 0:04:57.3]} 1... e6 {[%clk 0:04:58.5]} 2. c4 {[%clk 0:04:56.1]}
2... d5 {[%clk 0:04:57.8]} 3. Nc3 {[%clk 0:04:54.7]} 3... c6 {[%clk 0:04:56.2]}
4. Nf3 {[%clk 0:04:51.8]} 4... Nf6 {[%clk 0:04:52.3]} 5. Bg5 {[%clk 0:04:49.9]}
5... Be7 {[%clk 0:04:50.4]} 6. e3 {[%clk 0:04:48.7]} 6... h6 {[%clk 0:04:49.9]}
7. Bh4 {[%clk 0:04:47.4]} 7... Nbd7 {[%clk 0:04:48.9]} 8. Bd3 {[%clk 0:04:43.3]}
8... O-O {[%clk 0:04:46]} 9. O-O {[%clk 0:04:41.8]} 9... b6 {[%clk 0:04:43.9]}
10. cxd5 {[%clk 0:04:36.6]} 10... cxd5 {[%clk 0:04:42.3]} 11. Rc1 {[%clk
0:04:34.7]} 11... Bb7 {[%clk 0:04:41.4]} 12. Nb5 {[%clk 0:04:32.1]} 12... a6
{[%clk 0:04:16.4]} 13. Nc7 {[%clk 0:04:26.6]} 13... Rc8 {[%clk 0:04:13.4]} 14.
Nxa6 {[%clk 0:04:24.9]} 14... Bxa6 {[%clk 0:04:09.5]} 15. Bxa6 {[%clk
0:04:22.5]} 15... Ra8 {[%clk 0:04:08.2]} 16. Bb5 {[%clk 0:03:56]} 16... Rxa2
{[%clk 0:04:04.5]} 17. b3 {[%clk 0:03:54.7]} 17... Ra5 {[%clk 0:03:51]} 18. Qd3
{[%clk 0:03:46.8]} 18... Qb8 {[%clk 0:03:36.8]} 19. Bxd7 {[%clk 0:03:41.2]}
19... Nxd7 {[%clk 0:03:31.8]} 20. Bxe7 {[%clk 0:03:39.4]} 20... Re8 {[%clk
0:03:31.1]} 21. Bb4 {[%clk 0:03:37.1]} 21... Ra7 {[%clk 0:03:27.1]} 22. Qb5
{[%clk 0:03:31]} 22... Nf6 {[%clk 0:03:18.8]} 23. Qc6 {[%clk 0:03:21]} 23... Rc7
{[%clk 0:03:13.5]} 24. Qxc7 {[%clk 0:03:18.1]} 1-0

[Event "Live Chess"]
[Site "Chess.com"]
[Date "2024.06.02"]
[Round "-"]
[White "DJ_Lambton"]
[Black "WeakOldFinished"]
[Result "0-1"]
[WhiteElo "1782"]
[BlackElo "2091"]
[TimeControl "300"]
[EndTime "2:54:17 PDT"]
[Termination "WeakOldFinished won by resignation"]

1. c4 {[%clk 0:04:58.2]} 1... e5 {[%clk 0:04:58.2]} 2. g3 {[%clk 0:04:57.3]}
2... Nf6 {[%clk 0:04:56.7]} 3. Bg2 {[%clk 0:04:55.8]} 3... c6 {[%clk 0:04:55.5]}
4. d4 {[%clk 0:04:54.7]} 4... exd4 {[%clk 0:04:51.9]} 5. Qxd4 {[%clk 0:04:54.6]}
5... Na6 {[%clk 0:04:51.3]} 6. Nf3 {[%clk 0:04:52.9]} 6... Bc5 {[%clk
0:04:49.2]} 7. Qd3 {[%clk 0:04:49.5]} 7... O-O {[%clk 0:04:44.8]} 8. O-O {[%clk
0:04:48.4]} 8... d5 {[%clk 0:04:43]} 9. cxd5 {[%clk 0:04:47.2]} 9... Qxd5 {[%clk
0:04:36.7]} 10. Qxd5 {[%clk 0:04:45.9]} 10... Nxd5 {[%clk 0:04:36.6]} 11. a3
{[%clk 0:04:42.9]} 11... Re8 {[%clk 0:04:26.2]} 12. e3 {[%clk 0:04:36.2]} 12...
Bf5 {[%clk 0:04:24.6]} 13. b4 {[%clk 0:04:34.5]} 13... Be7 {[%clk 0:04:21.1]}
14. Bb2 {[%clk 0:04:33.1]} 14... Bf6 {[%clk 0:04:19.4]} 15. Bxf6 {[%clk
0:04:31.7]} 15... Nxf6 {[%clk 0:04:19.3]} 16. Nc3 {[%clk 0:04:30.6]} 16... Nc7
{[%clk 0:04:17]} 17. Rad1 {[%clk 0:04:29.2]} 17... Rad8 {[%clk 0:04:15.3]} 18.
Rd4 {[%clk 0:04:11.2]} 18... Ne6 {[%clk 0:04:10.8]} 19. Rxd8 {[%clk 0:04:05.8]}
19... Rxd8 {[%clk 0:04:10.7]} 20. Rd1 {[%clk 0:03:59.5]} 20... Rxd1+ {[%clk
0:04:08.3]} 21. Nxd1 {[%clk 0:03:59.4]} 21... Kf8 {[%clk 0:03:53]} 22. Nc3
{[%clk 0:03:57.5]} 22... Ke7 {[%clk 0:03:50.1]} 23. Kf1 {[%clk 0:03:56.1]} 23...
Ne4 {[%clk 0:03:40]} 24. Nxe4 {[%clk 0:03:54.3]} 24... Bxe4 {[%clk 0:03:38.6]}
25. Ke2 {[%clk 0:03:53.9]} 25... Bxf3+ {[%clk 0:03:36.7]} 26. Bxf3 {[%clk
0:03:53]} 26... Kd6 {[%clk 0:03:36.2]} 27. Kd2 {[%clk 0:03:51.3]} 27... b6
{[%clk 0:03:28.2]} 28. h4 {[%clk 0:03:49.9]} 28... c5 {[%clk 0:03:25.3]} 29.
bxc5+ {[%clk 0:03:49]} 29... Kxc5 {[%clk 0:03:23.3]} 30. Kc3 {[%clk 0:03:48.5]}
30... b5 {[%clk 0:03:20.6]} 31. Bg4 {[%clk 0:03:46.5]} 31... a5 {[%clk
0:03:16.7]} 32. Be2 {[%clk 0:03:41.7]} 32... Nc7 {[%clk 0:03:11.5]} 33. Bd3
{[%clk 0:03:38.9]} 33... Nd5+ {[%clk 0:03:08]} 34. Kb3 {[%clk 0:03:33.6]} 34...
h6 {[%clk 0:03:06.3]} 35. Be4 {[%clk 0:03:31.3]} 35... Nf6 {[%clk 0:03:03.4]}
36. Bf3 {[%clk 0:03:29.6]} 36... Nd7 {[%clk 0:03:02]} 37. Be2 {[%clk 0:03:28.3]}
37... b4 {[%clk 0:02:57.1]} 38. axb4+ {[%clk 0:03:27.2]} 38... axb4 {[%clk
0:02:57]} 39. Bd3 {[%clk 0:03:25.5]} 39... Ne5 {[%clk 0:02:53.3]} 40. Be2 {[%clk
0:03:21.3]} 40... Nc6 {[%clk 0:02:51.2]} 41. f4 {[%clk 0:03:20.1]} 41... Na5+
{[%clk 0:02:44.7]} 42. Ka4 {[%clk 0:03:17.7]} 42... Nc4 {[%clk 0:02:43.6]} 43.
Kb3 {[%clk 0:03:14.2]} 43... Nxe3 {[%clk 0:02:41.6]} 44. g4 {[%clk 0:03:11]}
44... Nd5 {[%clk 0:02:34]} 45. f5 {[%clk 0:03:08]} 45... f6 {[%clk 0:02:33]} 46.
Bf3 {[%clk 0:03:05.4]} 46... Nc3 {[%clk 0:02:27]} 47. Bg2 {[%clk 0:02:55.1]}
47... Nb5 {[%clk 0:02:25.6]} 48. Bf3 {[%clk 0:02:51.5]} 48... Nd4+ {[%clk
0:02:24.2]} 0-1

[Event "Live Chess"]
[Site "Chess.com"]
[Date "2024.06.02"]
[Round "-"]
[White "silunn"]
[Black "bonantagulo"]
[Result "1-0"]
[WhiteElo "2169"]
[BlackElo "2226"]
[TimeControl "300"]
[EndTime "2:54:49 PDT"]
[Termination "silunn won on time"]

1. e4 {[%clk 0:04:59.2]} 1... c5 {[%clk 0:04:58.5]} 2. Nf3 {[%clk 0:04:58.6]}
2... e6 {[%clk 0:04:57.5]} 3. d4 {[%clk 0:04:58.5]} 3... cxd4 {[%clk 0:04:56.9]}
4. Nxd4 {[%clk 0:04:58.4]} 4... Nc6 {[%clk 0:04:56.5]} 5. Be3 {[%clk 0:04:54.4]}
5... Qc7 {[%clk 0:04:47.5]} 6. Nb3 {[%clk 0:04:36.2]} 6... Nf6 {[%clk
0:04:40.8]} 7. N1d2 {[%clk 0:04:30]} 7... d5 {[%clk 0:04:24.6]} 8. Bd3 {[%clk
0:04:23.1]} 8... Bd6 {[%clk 0:04:03]} 9. h3 {[%clk 0:03:55.3]} 9... O-O {[%clk
0:03:42.4]} 10. Bg5 {[%clk 0:03:43.7]} 10... Nxe4 {[%clk 0:03:30.6]} 11. Bxe4
{[%clk 0:03:29.4]} 11... dxe4 {[%clk 0:03:30.5]} 12. Nxe4 {[%clk 0:03:28.3]}
12... Bf4 {[%clk 0:02:45.5]} 13. Qg4 {[%clk 0:02:15.1]} 13... e5 {[%clk
0:02:04.3]} 14. Qh4 {[%clk 0:02:11.5]} 14... Bf5 {[%clk 0:01:35.6]} 15. f3
{[%clk 0:01:21.4]} 15... Bxe4 {[%clk 0:00:39.8]} 16. fxe4 {[%clk 0:01:21.3]}
16... Nb4 {[%clk 0:00:32.7]} 17. O-O {[%clk 0:00:57.4]} 17... Qxc2 {[%clk
0:00:28.9]} 18. Bxf4 {[%clk 0:00:53.5]} 18... exf4 {[%clk 0:00:28.8]} 19. Qxf4
{[%clk 0:00:50.4]} 19... Qxb2 {[%clk 0:00:28.1]} 20. Nc5 {[%clk 0:00:48.1]}
20... Qd4+ {[%clk 0:00:20.7]} 21. Qf2 {[%clk 0:00:46.2]} 21... Qxf2+ {[%clk
0:00:19.4]} 22. Rxf2 {[%clk 0:00:46]} 22... b6 {[%clk 0:00:17.8]} 23. Nb3 {[%clk
0:00:41.6]} 23... Rfe8 {[%clk 0:00:16.6]} 24. Re2 {[%clk 0:00:38.8]} 24... f5
{[%clk 0:00:15.1]} 25. e5 {[%clk 0:00:37.8]} 25... Re7 {[%clk 0:00:13.6]} 26.
Nd4 {[%clk 0:00:34.4]} 26... Rae8 {[%clk 0:00:12.6]} 27. Nf3 {[%clk 0:00:31]}
27... Nd3 {[%clk 0:00:10.8]} 28. Rd1 {[%clk 0:00:27.3]} 28... Nxe5 {[%clk
0:00:10.2]} 29. Nxe5 {[%clk 0:00:25.9]} 29... Rxe5 {[%clk 0:00:10.1]} 30. Rxe5
{[%clk 0:00:25.4]} 30... Rxe5 {[%clk 0:00:10]} 31. Rd8+ {[%clk 0:00:24.2]} 31...
Kf7 {[%clk 0:00:09.2]} 32. Rd7+ {[%clk 0:00:23.9]} 32... Re7 {[%clk 0:00:09.1]}
33. Rd5 {[%clk 0:00:22.6]} 33... g6 {[%clk 0:00:09]} 34. Rd4 {[%clk 0:00:22]}
34... Re6 {[%clk 0:00:08.7]} 35. Kf2 {[%clk 0:00:21.6]} 35... Re7 {[%clk
0:00:08.6]} 36. Rd5 {[%clk 0:00:21.1]} 36... Kf6 {[%clk 0:00:08.5]} 37. Rd6+
{[%clk 0:00:20.6]} 37... Re6 {[%clk 0:00:08.4]} 38. Rd3 {[%clk 0:00:20.5]} 38...
a5 {[%clk 0:00:07.7]} 39. Rb3 {[%clk 0:00:19.8]} 39... h6 {[%clk 0:00:07.6]} 40.
a4 {[%clk 0:00:19.7]} 40... g5 {[%clk 0:00:07.1]} 41. Kf3 {[%clk 0:00:19.2]}
41... f4 {[%clk 0:00:07]} 42. g3 {[%clk 0:00:18.6]} 42... fxg3 {[%clk
0:00:06.1]} 43. Kxg3 {[%clk 0:00:18.5]} 43... Kf5 {[%clk 0:00:06]} 44. Kf3
{[%clk 0:00:18]} 44... Re4 {[%clk 0:00:05.9]} 45. Rxb6 {[%clk 0:00:17.2]} 45...
Rxa4 {[%clk 0:00:05.1]} 46. Rb5+ {[%clk 0:00:17.1]} 46... Kf6 {[%clk 0:00:04.2]}
47. Kg3 {[%clk 0:00:15.4]} 47... Ra3+ {[%clk 0:00:03.3]} 48. Kg2 {[%clk
0:00:15]} 48... a4 {[%clk 0:00:03.2]} 49. Rb6+ {[%clk 0:00:14.5]} 49... Kg7
{[%clk 0:00:03.1]} 50. Ra6 {[%clk 0:00:14.4]} 50... Rb3 {[%clk 0:00:01.8]} 51.
Kh2 {[%clk 0:00:14]} 51... Rb2+ {[%clk 0:00:01.7]} 52. Kg3 {[%clk 0:00:13.3]}
52... Rb3+ {[%clk 0:00:01.6]} 53. Kg4 {[%clk 0:00:12.8]} 53... Rb4+ {[%clk
0:00:01.5]} 54. Kf5 {[%clk 0:00:11]} 54... Rh4 {[%clk 0:00:01.4]} 55. Ra7+
{[%clk 0:00:10]} 55... Kg8 {[%clk 0:00:01.3]} 56. Kg6 {[%clk 0:00:09.1]} 56...
Rf4 {[%clk 0:00:01.2]} 57. Ra8+ {[%clk 0:00:08.4]} 57... Rf8 {[%clk 0:00:01.1]}
58. Rxa4 {[%clk 0:00:07.5]} 58... Rf6+ {[%clk 0:00:00.5]} 59. Kxf6 {[%clk
0:00:06.9]} 59... Kh7 {[%clk 0:00:00.4]} 60. Ra7+ {[%clk 0:00:05.8]} 60... Kg8
{[%clk 0:00:00.3]} 61. Kg6 {[%clk 0:00:04.7]} 61... Kf8 {[%clk 0:00:00.2]} 62.
Kxh6 {[%clk 0:00:03.9]} 62... Ke8 {[%clk 0:00:00.1]} 63. Kxg5 {[%clk 0:00:03.8]}
1-0

[Event "Live Chess"]
[Site "Chess.com"]
[Date "2024.06.02"]
[Round "-"]
[White "bill77678"]
[Black "Zhevzh1k7"]
[Result "1-0"]
[WhiteElo "1845"]
[BlackElo "1107"]
[TimeControl "300"]
[EndTime "2:54:51 PDT"]
[Termination "bill77678 won by resignation"]

1. e4 {[%clk 0:04:58.3]} 1... c6 {[%clk 0:04:58.1]} 2. d4 {[%clk 0:04:57]} 2...
d5 {[%clk 0:04:57.2]} 3. exd5 {[%clk 0:04:56.7]} 3... cxd5 {[%clk 0:04:55.7]} 4.
Bd3 {[%clk 0:04:56.4]} 4... Nc6 {[%clk 0:04:53.6]} 5. c3 {[%clk 0:04:55.8]} 5...
Nf6 {[%clk 0:04:49.8]} 6. Bf4 {[%clk 0:04:55.1]} 6... Bd7 {[%clk 0:04:39.7]} 7.
Nf3 {[%clk 0:04:52.4]} 7... e6 {[%clk 0:04:38.7]} 8. O-O {[%clk 0:04:49.4]} 8...
Be7 {[%clk 0:04:37.4]} 9. Re1 {[%clk 0:04:47]} 9... O-O {[%clk 0:04:35]} 10.
Nbd2 {[%clk 0:04:44.5]} 10... Qb6 {[%clk 0:04:29.1]} 11. Rb1 {[%clk 0:04:33.2]}
11... a5 {[%clk 0:04:21.4]} 12. Ne5 {[%clk 0:04:26.9]} 12... Nxe5 {[%clk
0:04:16]} 13. dxe5 {[%clk 0:04:26.8]} 13... Ne8 {[%clk 0:04:07.8]} 14. Qh5
{[%clk 0:04:10.4]} 14... g6 {[%clk 0:03:52.1]} 15. Qg4 {[%clk 0:04:08.7]} 15...
Bc5 {[%clk 0:03:45]} 16. Re2 {[%clk 0:04:01.1]} 16... Ng7 {[%clk 0:03:31.1]} 17.
Bh6 {[%clk 0:03:54.5]} 17... Be7 {[%clk 0:03:27.1]} 18. h4 {[%clk 0:03:51.7]}
18... f6 {[%clk 0:03:14.7]} 19. exf6 {[%clk 0:03:44.7]} 19... Rxf6 {[%clk
0:03:08.5]} 20. Bg5 {[%clk 0:03:31.5]} 20... Rf7 {[%clk 0:02:59.1]} 21. Bxe7
{[%clk 0:03:22.9]} 21... Rxe7 {[%clk 0:02:56.8]} 22. Nf3 {[%clk 0:03:11.7]}
22... e5 {[%clk 0:02:54.4]} 23. Qg5 {[%clk 0:03:09.4]} 23... Qf6 {[%clk
0:02:44.4]} 24. Qxf6 {[%clk 0:03:07.3]} 1-0

[Event "Live Chess"]
[Site "Chess.com"]
[Date "2024.06.02"]
[Round "-"]
[White "NeilDruggan73"]
[Black "Brooms1989"]
[Result "1-0"]
[WhiteElo "1696"]
[BlackElo "1195"]
[TimeControl "300"]
[EndTime "2:54:51 PDT"]
[Termination "NeilDruggan73 won by checkmate"]

1. d4 {[%clk 0:04:57]} 1... Nf6 {[%clk 0:04:58.7]} 2. Bg5 {[%clk 0:04:54.4]}
2... g6 {[%clk 0:04:52.9]} 3. Bxf6 {[%clk 0:04:52.5]} 3... exf6 {[%clk
0:04:52.8]} 4. e3 {[%clk 0:04:51.4]} 4... Bg7 {[%clk 0:04:51.9]} 5. g3 {[%clk
0:04:49.9]} 5... O-O {[%clk 0:04:50.4]} 6. Bg2 {[%clk 0:04:49.4]} 6... f5 {[%clk
0:04:49.7]} 7. c4 {[%clk 0:04:45.3]} 7... c6 {[%clk 0:04:48.3]} 8. Nc3 {[%clk
0:04:43.8]} 8... Re8 {[%clk 0:04:40]} 9. Nge2 {[%clk 0:04:42.7]} 9... d6 {[%clk
0:04:30.4]} 10. Nf4 {[%clk 0:04:37.8]} 10... Nd7 {[%clk 0:04:27.5]} 11. h4
{[%clk 0:04:26.9]} 11... Nf6 {[%clk 0:04:23.1]} 12. Bf3 {[%clk 0:04:21.9]} 12...
Ne4 {[%clk 0:04:13.3]} 13. h5 {[%clk 0:04:16.3]} 13... Nxc3 {[%clk 0:03:57.3]}
14. bxc3 {[%clk 0:04:11.7]} 14... c5 {[%clk 0:03:48.7]} 15. hxg6 {[%clk
0:04:10.6]} 15... fxg6 {[%clk 0:03:46.4]} 16. Bd5+ {[%clk 0:04:05.1]} 16... Kf8
{[%clk 0:03:38.7]} 17. Rxh7 {[%clk 0:03:59.8]} 17... cxd4 {[%clk 0:03:33.5]} 18.
Nxg6# {[%clk 0:03:54.2]} 1-0

[Event "Live Chess"]
[Site "Chess.com"]
[Date "2024.06.02"]
[Round "-"]
[White "bill77678"]
[Black "Brooms1989"]
[Result "1-0"]
[WhiteElo "1845"]
[BlackElo "1195"]
[TimeControl "300"]
[EndTime "2:55:48 PDT"]
[Termination "bill77678 won by resignation"]

1. e4 {[%clk 0:04:58.2]} 1... e5 {[%clk 0:04:59]} 2. Nf3 {[%clk 0:04:57.4]} 2...
Nc6 {[%clk 0:04:58.5]} 3. d4 {[%clk 0:04:56.5]} 3... exd4 {[%clk 0:04:57.3]} 4.
Bc4 {[%clk 0:04:55.8]} 4... Nf6 {[%clk 0:04:55.7]} 5. e5 {[%clk 0:04:55.2]} 5...
d5 {[%clk 0:04:54.3]} 6. Bb5 {[%clk 0:04:54.5]} 6... Nd7 {[%clk 0:04:49.5]} 7.
Bxc6 {[%clk 0:04:48.1]} 7... bxc6 {[%clk 0:04:49.4]} 8. O-O {[%clk 0:04:46]}
8... Bc5 {[%clk 0:04:39.3]} 9. Bg5 {[%clk 0:04:44.6]} 9... f6 {[%clk 0:04:36.9]}
10. exf6 {[%clk 0:04:42.8]} 10... Nxf6 {[%clk 0:04:35.2]} 11. Re1+ {[%clk
0:04:42]} 11... Be7 {[%clk 0:04:32.2]} 12. Nxd4 {[%clk 0:04:40.7]} 1-0

[Event "Live Chess"]
[Site "Chess.com"]
[Date "2024.06.02"]
[Round "-"]
[White "matt1979"]
[Black "NomisY"]
[Result "0-1"]
[WhiteElo "1408"]
[BlackElo "2285"]
[TimeControl "300"]
[EndTime "2:56:28 PDT"]
[Termination "NomisY won by resignation"]

1. f4 {[%clk 0:04:59.1]} 1... d5 {[%clk 0:04:57.1]} 2. e3 {[%clk 0:04:57]} 2...
g6 {[%clk 0:04:50.8]} 3. Nf3 {[%clk 0:04:55.8]} 3... Bg7 {[%clk 0:04:48.8]} 4.
d3 {[%clk 0:04:48.8]} 4... Nf6 {[%clk 0:04:41.4]} 5. Be2 {[%clk 0:04:47.8]} 5...
O-O {[%clk 0:04:38.9]} 6. O-O {[%clk 0:04:47.2]} 6... c5 {[%clk 0:04:38.5]} 7.
Nc3 {[%clk 0:04:44.5]} 7... Nc6 {[%clk 0:04:33]} 8. e4 {[%clk 0:04:42]} 8... d4
{[%clk 0:04:23.1]} 9. Nb1 {[%clk 0:04:40.7]} 9... Ng4 {[%clk 0:04:19.5]} 10. h3
{[%clk 0:04:38.6]} 10... Ne3 {[%clk 0:04:15.6]} 11. Bxe3 {[%clk 0:04:37.6]}
11... dxe3 {[%clk 0:04:15.2]} 12. c3 {[%clk 0:04:35]} 12... Qb6 {[%clk
0:04:09.4]} 13. Qc1 {[%clk 0:04:29.5]} 13... Bh6 {[%clk 0:04:05.7]} 14. g3
{[%clk 0:04:27.4]} 14... Bxh3 {[%clk 0:04:00.5]} 15. Re1 {[%clk 0:04:15]} 15...
e5 {[%clk 0:03:58.3]} 16. Qxe3 {[%clk 0:04:11]} 16... Qxb2 {[%clk 0:03:54.2]}
17. Nbd2 {[%clk 0:04:06.6]} 17... Qxc3 {[%clk 0:03:52.3]} 18. Rac1 {[%clk
0:04:02.5]} 18... Qa5 {[%clk 0:03:50.1]} 19. Rxc5 {[%clk 0:03:57.9]} 19... exf4
{[%clk 0:03:38.8]} 20. gxf4 {[%clk 0:03:55.7]} 20... Bxf4 {[%clk 0:03:36.5]} 21.
Qxf4 {[%clk 0:03:41.3]} 21... Qxc5+ {[%clk 0:03:34.2]} 22. Kh2 {[%clk
0:03:37.9]} 22... Be6 {[%clk 0:03:29.2]} 23. Rg1 {[%clk 0:03:25.3]} 23... Nd4
{[%clk 0:03:19.7]} 24. Nxd4 {[%clk 0:03:23.7]} 24... Qxd4 {[%clk 0:03:17.9]} 25.
Qh6 {[%clk 0:03:18.2]} 25... Rac8 {[%clk 0:03:08.9]} 26. Nf3 {[%clk 0:03:02.7]}
26... Qb2 {[%clk 0:03:05.8]} 27. Rg2 {[%clk 0:02:46.3]} 27... Rc2 {[%clk
0:02:57]} 28. Ng5 {[%clk 0:02:43.1]} 28... Qg7 {[%clk 0:02:52.8]} 29. Qh4 {[%clk
0:02:31.3]} 29... Bxa2 {[%clk 0:02:39.3]} 30. Rf2 {[%clk 0:02:20.9]} 30... Be6
{[%clk 0:02:25]} 31. d4 {[%clk 0:02:08]} 31... h6 {[%clk 0:02:21.4]} 32. Nxe6
{[%clk 0:02:06.4]} 32... fxe6 {[%clk 0:02:16.2]} 33. Rxf8+ {[%clk 0:02:03.5]}
33... Qxf8 {[%clk 0:02:09.6]} 34. Qg4 {[%clk 0:01:59.4]} 34... Kg7 {[%clk
0:02:02]} 35. Kh3 {[%clk 0:01:51.4]} 35... h5 {[%clk 0:01:51.4]} 36. Qg2 {[%clk
0:01:46.4]} 36... Qf6 {[%clk 0:01:48.9]} 37. e5 {[%clk 0:01:44.1]} 37... Qf5+
{[%clk 0:01:44.7]} 38. Kh2 {[%clk 0:01:42.7]} 38... Qf4+ {[%clk 0:01:29.9]} 39.
Kg1 {[%clk 0:01:32.6]} 39... Qe3+ {[%clk 0:01:28.3]} 40. Kh2 {[%clk 0:01:31.4]}
40... Rxe2 {[%clk 0:01:23.1]} 0-1

[Event "Live Chess"]
[Site "Chess.com"]
[Date "2024.06.02"]
[Round "-"]
[White "ACM42"]
[Black "A3ndrey9"]
[Result "1-0"]
[WhiteElo "2153"]
[BlackElo "1279"]
[TimeControl "300"]
[EndTime "2:56:31 PDT"]
[Termination "ACM42 won by checkmate"]

1. e4 {[%clk 0:04:59.2]} 1... c6 {[%clk 0:04:59.3]} 2. Nf3 {[%clk 0:04:58.5]}
2... d5 {[%clk 0:04:59.2]} 3. exd5 {[%clk 0:04:57.1]} 3... cxd5 {[%clk
0:04:57.8]} 4. d4 {[%clk 0:04:56.4]} 4... Bf5 {[%clk 0:04:56.8]} 5. Bd3 {[%clk
0:04:54]} 5... Bxd3 {[%clk 0:04:55.3]} 6. Qxd3 {[%clk 0:04:53.5]} 6... Nf6
{[%clk 0:04:54.6]} 7. O-O {[%clk 0:04:52.5]} 7... e6 {[%clk 0:04:53.8]} 8. h3
{[%clk 0:04:50.3]} 8... Nbd7 {[%clk 0:04:52.4]} 9. b3 {[%clk 0:04:46.1]} 9...
Be7 {[%clk 0:04:51.9]} 10. c4 {[%clk 0:04:45.3]} 10... dxc4 {[%clk 0:04:50.2]}
11. bxc4 {[%clk 0:04:44.3]} 11... O-O {[%clk 0:04:49.2]} 12. Nbd2 {[%clk
0:04:42.9]} 12... Rc8 {[%clk 0:04:43.3]} 13. Bb2 {[%clk 0:04:37]} 13... a5
{[%clk 0:04:38.5]} 14. Rac1 {[%clk 0:04:31.6]} 14... a4 {[%clk 0:04:34.1]} 15.
Ne4 {[%clk 0:04:25.2]} 15... Nxe4 {[%clk 0:04:30.6]} 16. Qxe4 {[%clk 0:04:23.7]}
16... Nf6 {[%clk 0:04:26.6]} 17. Qe3 {[%clk 0:04:08.8]} 17... h6 {[%clk
0:04:08.3]} 18. Rfd1 {[%clk 0:04:07.8]} 18... b6 {[%clk 0:03:08.2]} 19. Ba3
{[%clk 0:03:57.6]} 19... Bxa3 {[%clk 0:02:59]} 20. Qxa3 {[%clk 0:03:55.3]} 20...
Qd7 {[%clk 0:02:47]} 21. Ne5 {[%clk 0:03:51.5]} 21... Qa7 {[%clk 0:02:35.4]} 22.
Rb1 {[%clk 0:03:43.8]} 22... Rfd8 {[%clk 0:01:51.1]} 23. Rb5 {[%clk 0:03:36.4]}
23... Ne4 {[%clk 0:01:34.8]} 24. Qb4 {[%clk 0:03:20]} 24... Nd6 {[%clk
0:01:04.1]} 25. Rxb6 {[%clk 0:03:12.5]} 25... Rxc4 {[%clk 0:00:58.8]} 26. Nxc4
{[%clk 0:03:09.9]} 26... Nxc4 {[%clk 0:00:54.5]} 27. Rb7 {[%clk 0:03:08.8]}
27... Qa6 {[%clk 0:00:14.3]} 28. Qe7 {[%clk 0:02:26.2]} 28... Rf8 {[%clk
0:00:11.7]} 29. Rc1 {[%clk 0:02:24.9]} 29... Nd2 {[%clk 0:00:09.5]} 30. Qxf8+
{[%clk 0:02:22]} 30... Kxf8 {[%clk 0:00:07.3]} 31. Rc8# {[%clk 0:02:21.4]} 1-0